[Event "Titled Tuesday Blitz January 03 Early 2023"]
[White "Sreyas Payyappat"]
[Black "Omelja, Artem"]
[WhiteFideId "46674969"]
[BlackFideId "14119846"]
[WhiteElo "2076"]
[BlackElo "2446"]
[Result "0-1"]
[Round "05"]
[TimeControl "180+2"]
[Date "2023.01.03"]
[WhiteClock "0:00:35"]
[BlackClock "0:01:01"]

1. e4 {[%clk 0:02:58]}  c5 {[%clk 0:02:59]} 2. Nf3 {[%clk 0:02:58]}  Nc6 {[%clk 0:02:59]} 3. d3 {[%clk 0:02:57]}  e5 {[%clk 0:02:58]} 4. Nc3 {[%clk 0:02:58]}  d6 {[%clk 0:02:58]} 5. Be3 {[%clk 0:02:58]}  g6 {[%clk 0:02:57]} 6. Be2 {[%clk 0:02:59]}  Bg7 {[%clk 0:02:57]} 7. O-O {[%clk 0:03:00]}  Nge7 {[%clk 0:02:58]} 8. Nd5 {[%clk 0:02:58]}  O-O {[%clk 0:02:58]} 9. Nd2 {[%clk 0:02:49]}  f5 {[%clk 0:02:54]} 10. f4 {[%clk 0:02:47]}  Nxd5 {[%clk 0:02:49]} 11. exd5 {[%clk 0:02:47]}  Ne7 {[%clk 0:02:50]} 12. c4 {[%clk 0:02:43]}  Bd7 {[%clk 0:02:36]} 13. Rb1 {[%clk 0:02:41]}  b6 {[%clk 0:02:35]} 14. Nf3 {[%clk 0:02:35]}  e4 {[%clk 0:02:30]} 15. dxe4 {[%clk 0:02:32]}  fxe4 {[%clk 0:02:29]} 16. Ng5 {[%clk 0:02:33]}  Nf5 {[%clk 0:02:29]} 17. Bf2 {[%clk 0:02:29]}  Qe7 {[%clk 0:02:23]} 18. g4 {[%clk 0:02:29]}  Nd4 {[%clk 0:02:23]} 19. Be3 {[%clk 0:02:25]}  h6 {[%clk 0:02:22]} 20. Nh3 {[%clk 0:02:17]}  Qh4 {[%clk 0:02:20]} 21. Nf2 {[%clk 0:02:18]}  Rae8 {[%clk 0:02:11]} 22. Kh1 {[%clk 0:02:13]}  g5 {[%clk 0:01:59]} 23. f5 {[%clk 0:02:09]}  Be5 {[%clk 0:01:58]} 24. Nh3 {[%clk 0:01:53]}  Qxh3 {[%clk 0:01:56]} 25. Bg1 {[%clk 0:01:54]}  h5 {[%clk 0:01:12]} 26. Rf2 {[%clk 0:01:23]}  Nxe2 {[%clk 0:01:05]} 27. Qxe2 {[%clk 0:01:01]}  Qxg4 {[%clk 0:01:03]} 28. Qxg4 {[%clk 0:00:43]}  hxg4 {[%clk 0:01:03]} 29. Rbf1 {[%clk 0:00:44]}  Bf4 {[%clk 0:01:03]} 30. Rg2 {[%clk 0:00:38]}  Bxf5 {[%clk 0:01:01]} 31. Bf2 {[%clk 0:00:35]}  e3 {[%clk 0:01:01]} 0-1


[Site "https://www.chess.com"]

[Event "Titled Tuesday Blitz January 03 Early 2023"]
[White "Szyszylo, Rafal"]
[Black "Mei, Austin"]
[WhiteFideId "1109626"]
[BlackFideId "30948479"]
[WhiteElo "2091"]
[BlackElo "2218"]
[Result "1/2-1/2"]
[Round "05"]
[TimeControl "180+2"]
[Date "2023.01.03"]
[WhiteClock "0:00:11"]
[BlackClock "0:00:09"]

1. e4 {[%clk 0:03:00]}  e5 {[%clk 0:02:57]} 2. Nf3 {[%clk 0:02:58]}  Nc6 {[%clk 0:02:55]} 3. Bb5 {[%clk 0:02:58]}  a6 {[%clk 0:02:55]} 4. Ba4 {[%clk 0:02:58]}  Nf6 {[%clk 0:02:54]} 5. Qe2 {[%clk 0:02:57]}  d6 {[%clk 0:02:54]} 6. O-O {[%clk 0:02:56]}  Bd7 {[%clk 0:02:54]} 7. c3 {[%clk 0:02:56]}  g6 {[%clk 0:02:53]} 8. d4 {[%clk 0:02:53]}  Bg7 {[%clk 0:02:53]} 9. Bg5 {[%clk 0:02:46]}  h6 {[%clk 0:02:49]} 10. Bh4 {[%clk 0:02:43]}  g5 {[%clk 0:02:46]} 11. Bg3 {[%clk 0:02:42]}  Nh5 {[%clk 0:02:47]} 12. dxe5 {[%clk 0:02:36]}  Nxg3 {[%clk 0:02:42]} 13. fxg3 {[%clk 0:02:28]}  Nxe5 {[%clk 0:02:39]} 14. Bb3 {[%clk 0:02:17]}  Qe7 {[%clk 0:02:37]} 15. Nd4 {[%clk 0:02:16]}  O-O-O {[%clk 0:02:30]} 16. Nd2 {[%clk 0:02:16]}  h5 {[%clk 0:02:19]} 17. Nf5 {[%clk 0:02:00]}  Bxf5 {[%clk 0:02:17]} 18. Rxf5 {[%clk 0:01:56]}  g4 {[%clk 0:02:16]} 19. Raf1 {[%clk 0:01:45]}  Rdg8 {[%clk 0:01:56]} 20. Bxf7 {[%clk 0:01:41]}  Rf8 {[%clk 0:01:56]} 21. Bd5 {[%clk 0:01:38]}  Rxf5 {[%clk 0:01:52]} 22. exf5 {[%clk 0:01:25]}  h4 {[%clk 0:01:52]} 23. Be6+ {[%clk 0:01:25]}  Kb8 {[%clk 0:01:50]} 24. Ne4 {[%clk 0:01:15]}  Bf6 {[%clk 0:01:46]} 25. gxh4 {[%clk 0:01:10]}  Bxh4 {[%clk 0:01:43]} 26. b4 {[%clk 0:00:57]}  Bf6 {[%clk 0:01:38]} 27. b5 {[%clk 0:00:56]}  axb5 {[%clk 0:01:15]} 28. Qxb5 {[%clk 0:00:55]}  Bg5 {[%clk 0:01:02]} 29. Rb1 {[%clk 0:00:53]}  Be3+ {[%clk 0:01:02]} 30. Kf1 {[%clk 0:00:53]}  Bb6 {[%clk 0:01:00]} 31. Ng3 {[%clk 0:00:30]}  Rxh2 {[%clk 0:00:57]} 32. Rb3 {[%clk 0:00:17]}  Rh8 {[%clk 0:00:53]} 33. Ra3 {[%clk 0:00:17]}  Qg5 {[%clk 0:00:21]} 34. Qa4 {[%clk 0:00:15]}  Qc1+ {[%clk 0:00:21]} 35. Ke2 {[%clk 0:00:15]}  Qb2+ {[%clk 0:00:12]} 36. Kd1 {[%clk 0:00:13]}  Qb1+ {[%clk 0:00:12]} 37. Kd2 {[%clk 0:00:10]}  Qb2+ {[%clk 0:00:09]} 38. Kd1 {[%clk 0:00:10]}  Qb1+ {[%clk 0:00:09]} 39. Kd2 {[%clk 0:00:11]} 1/2-1/2


[Site "https://www.chess.com"]

[Event "Titled Tuesday Blitz January 03 Early 2023"]
[White "Lehtosaari, Mauri"]
[Black "aidenzhouu"]
[WhiteFideId "501999"]
[WhiteElo "2176"]
[BlackElo "2382"]
[Result "1/2-1/2"]
[Round "05"]
[TimeControl "180+2"]
[Date "2023.01.03"]
[WhiteClock "0:00:05"]
[BlackClock "0:00:15"]

1. d4 {[%clk 0:03:00]}  Nf6 {[%clk 0:02:57]} 2. Nf3 {[%clk 0:03:00]}  g6 {[%clk 0:02:57]} 3. c4 {[%clk 0:02:57]}  Bg7 {[%clk 0:02:57]} 4. e3 {[%clk 0:02:57]}  O-O {[%clk 0:02:58]} 5. Be2 {[%clk 0:02:57]}  d6 {[%clk 0:02:57]} 6. O-O {[%clk 0:02:57]}  c5 {[%clk 0:02:57]} 7. Nc3 {[%clk 0:02:57]}  b6 {[%clk 0:02:53]} 8. b3 {[%clk 0:02:53]}  e6 {[%clk 0:02:52]} 9. Bb2 {[%clk 0:02:52]}  Bb7 {[%clk 0:02:51]} 10. Qc2 {[%clk 0:02:51]}  a6 {[%clk 0:02:43]} 11. Rad1 {[%clk 0:02:50]}  Qc7 {[%clk 0:02:42]} 12. Nd2 {[%clk 0:02:44]}  Nc6 {[%clk 0:02:36]} 13. dxc5 {[%clk 0:02:32]}  dxc5 {[%clk 0:02:34]} 14. a3 {[%clk 0:02:30]}  Rfd8 {[%clk 0:02:27]} 15. Bf3 {[%clk 0:02:26]}  Ne5 {[%clk 0:02:20]} 16. Bxb7 {[%clk 0:02:26]}  Qxb7 {[%clk 0:02:21]} 17. Nce4 {[%clk 0:02:17]}  Nxe4 {[%clk 0:02:13]} 18. Nxe4 {[%clk 0:02:05]}  Qc7 {[%clk 0:01:56]} 19. h3 {[%clk 0:01:59]}  Nc6 {[%clk 0:01:49]} 20. Bxg7 {[%clk 0:01:56]}  Kxg7 {[%clk 0:01:50]} 21. f4 {[%clk 0:01:55]}  f6 {[%clk 0:01:35]} 22. Qc3 {[%clk 0:01:53]}  Qe7 {[%clk 0:01:34]} 23. g4 {[%clk 0:01:51]}  e5 {[%clk 0:01:29]} 24. f5 {[%clk 0:01:44]}  g5 {[%clk 0:01:26]} 25. Qc2 {[%clk 0:01:32]}  Rxd1 {[%clk 0:01:24]} 26. Rxd1 {[%clk 0:01:31]}  Rd8 {[%clk 0:01:25]} 27. Nc3 {[%clk 0:01:31]}  Rxd1+ {[%clk 0:01:07]} 28. Qxd1 {[%clk 0:01:32]}  Qd8 {[%clk 0:01:07]} 29. Nd5 {[%clk 0:01:09]}  Ne7 {[%clk 0:01:03]} 30. Kg2 {[%clk 0:00:57]}  b5 {[%clk 0:00:58]} 31. Kf3 {[%clk 0:00:54]}  Nxd5 {[%clk 0:00:41]} 32. cxd5 {[%clk 0:00:33]}  Qd6 {[%clk 0:00:25]} 33. Qd3 {[%clk 0:00:22]}  Kf7 {[%clk 0:00:22]} 34. e4 {[%clk 0:00:20]}  Ke7 {[%clk 0:00:21]} 35. Qc3 {[%clk 0:00:17]}  Qb6 {[%clk 0:00:21]} 36. Kg3 {[%clk 0:00:16]}  Kd6 {[%clk 0:00:21]} 37. h4 {[%clk 0:00:15]}  h6 {[%clk 0:00:21]} 38. hxg5 {[%clk 0:00:15]}  hxg5 {[%clk 0:00:22]} 39. Qe1 {[%clk 0:00:14]}  c4 {[%clk 0:00:21]} 40. bxc4 {[%clk 0:00:08]}  bxc4 {[%clk 0:00:22]} 41. Kf3 {[%clk 0:00:07]}  Qb3+ {[%clk 0:00:21]} 42. Qe3 {[%clk 0:00:07]}  a5 {[%clk 0:00:18]} 43. Ke2 {[%clk 0:00:06]}  Qc2+ {[%clk 0:00:18]} 44. Kf3 {[%clk 0:00:05]}  Qd1+ {[%clk 0:00:18]} 45. Kf2 {[%clk 0:00:06]}  Qc2+ {[%clk 0:00:16]} 46. Kf3 {[%clk 0:00:05]}  Qb3 {[%clk 0:00:16]} 47. Ke2 {[%clk 0:00:05]}  Qc2+ {[%clk 0:00:15]} 48. Kf3 {[%clk 0:00:05]} 1/2-1/2


[Site "https://www.chess.com"]

[Event "Titled Tuesday Blitz January 03 Early 2023"]
[White "Golubova, Anna"]
[Black "Jiganchine, Roman"]
[WhiteFideId "24173606"]
[BlackFideId "2603667"]
[WhiteElo "2156"]
[BlackElo "2205"]
[Result "0-1"]
[Round "05"]
[TimeControl "180+2"]
[Date "2023.01.03"]
[WhiteClock "0:01:41"]
[BlackClock "0:00:08"]

1. d4 {[%clk 0:03:00]}  d5 {[%clk 0:02:57]} 2. Nf3 {[%clk 0:03:01]}  Nf6 {[%clk 0:02:56]} 3. c4 {[%clk 0:03:01]}  e6 {[%clk 0:02:56]} 4. g3 {[%clk 0:03:01]}  c6 {[%clk 0:02:55]} 5. Bg2 {[%clk 0:03:02]}  Be7 {[%clk 0:02:55]} 6. O-O {[%clk 0:03:02]}  O-O {[%clk 0:02:55]} 7. Nc3 {[%clk 0:03:03]}  Nbd7 {[%clk 0:02:52]} 8. Qd3 {[%clk 0:03:03]}  b6 {[%clk 0:02:46]} 9. e4 {[%clk 0:03:01]}  Bb7 {[%clk 0:02:34]} 10. Rd1 {[%clk 0:02:59]}  Rc8 {[%clk 0:02:31]} 11. b3 {[%clk 0:02:59]}  c5 {[%clk 0:02:20]} 12. exd5 {[%clk 0:02:58]}  exd5 {[%clk 0:02:15]} 13. Bb2 {[%clk 0:02:56]}  cxd4 {[%clk 0:02:08]} 14. Nb5 {[%clk 0:02:55]}  dxc4 {[%clk 0:02:01]} 15. bxc4 {[%clk 0:02:55]}  Nc5 {[%clk 0:01:59]} 16. Qxd4 {[%clk 0:02:55]}  Qxd4 {[%clk 0:01:44]} 17. Bxd4 {[%clk 0:02:52]}  a6 {[%clk 0:01:42]} 18. Nc3 {[%clk 0:02:51]}  Rfd8 {[%clk 0:01:41]} 19. Rab1 {[%clk 0:02:46]}  Ne6 {[%clk 0:01:24]} 20. Bxb6 {[%clk 0:02:42]}  Rxd1+ {[%clk 0:01:19]} 21. Rxd1 {[%clk 0:02:43]}  Rxc4 {[%clk 0:01:17]} 22. Ne5 {[%clk 0:02:37]}  Rxc3 {[%clk 0:01:09]} 23. Bxb7 {[%clk 0:02:37]}  Rc2 {[%clk 0:00:59]} 24. a4 {[%clk 0:02:36]}  h5 {[%clk 0:00:47]} 25. Bxa6 {[%clk 0:02:34]}  Ng4 {[%clk 0:00:42]} 26. Nxg4 {[%clk 0:02:30]}  hxg4 {[%clk 0:00:41]} 27. Bb5 {[%clk 0:02:26]}  Ng5 {[%clk 0:00:39]} 28. Kg2 {[%clk 0:02:18]}  Bc5 {[%clk 0:00:26]} 29. Rd8+ {[%clk 0:02:10]}  Kh7 {[%clk 0:00:25]} 30. Bd3+ {[%clk 0:02:09]}  g6 {[%clk 0:00:20]} 31. Bxc2 {[%clk 0:02:08]}  Bxb6 {[%clk 0:00:20]} 32. a5 {[%clk 0:02:06]}  Bxd8 {[%clk 0:00:19]} 33. a6 {[%clk 0:02:05]}  Bb6 {[%clk 0:00:19]} 34. Bd1 {[%clk 0:02:02]}  f5 {[%clk 0:00:18]} 35. f4 {[%clk 0:01:56]}  gxf3+ {[%clk 0:00:18]} 36. Bxf3 {[%clk 0:01:52]}  Nxf3 {[%clk 0:00:18]} 37. Kxf3 {[%clk 0:01:52]}  Kh6 {[%clk 0:00:17]} 38. g4 {[%clk 0:01:52]}  Kg5 {[%clk 0:00:16]} 39. gxf5 {[%clk 0:01:51]}  gxf5 {[%clk 0:00:16]} 40. h4+ {[%clk 0:01:50]}  Kf6 {[%clk 0:00:11]} 41. h5 {[%clk 0:01:49]}  Kg5 {[%clk 0:00:10]} 42. Kg3 {[%clk 0:01:44]}  Kxh5 {[%clk 0:00:10]} 43. Kf4 {[%clk 0:01:44]}  Kg6 {[%clk 0:00:10]} 44. Kf3 {[%clk 0:01:44]}  Kg5 {[%clk 0:00:10]} 45. Kg3 {[%clk 0:01:44]}  f4+ {[%clk 0:00:10]} 46. Kf3 {[%clk 0:01:44]}  Kf5 {[%clk 0:00:11]} 47. Ke2 {[%clk 0:01:44]}  Ke4 {[%clk 0:00:11]} 48. Kf1 {[%clk 0:01:44]}  Ba7 {[%clk 0:00:12]} 49. Ke2 {[%clk 0:01:44]}  f3+ {[%clk 0:00:11]} 50. Kf1 {[%clk 0:01:44]}  Kf4 {[%clk 0:00:11]} 51. Ke1 {[%clk 0:01:44]}  Kg3 {[%clk 0:00:11]} 52. Kf1 {[%clk 0:01:44]}  f2 {[%clk 0:00:10]} 53. Ke2 {[%clk 0:01:42]}  Kg2 {[%clk 0:00:10]} 54. Kd3 {[%clk 0:01:42]}  f1=Q+ {[%clk 0:00:09]} 55. Ke4 {[%clk 0:01:42]}  Qe2+ {[%clk 0:00:09]} 56. Kd5 {[%clk 0:01:42]}  Qxa6 {[%clk 0:00:09]} 57. Ke5 {[%clk 0:01:42]}  Qb5+ {[%clk 0:00:09]} 58. Ke4 {[%clk 0:01:42]}  Qb7+ {[%clk 0:00:09]} 59. Ke5 {[%clk 0:01:42]}  Bb8+ {[%clk 0:00:09]} 60. Ke6 {[%clk 0:01:41]}  Qc6+ {[%clk 0:00:10]} 61. Kf7 {[%clk 0:01:41]}  Bd6 {[%clk 0:00:09]} 62. Ke6 {[%clk 0:01:41]}  Bc5+ {[%clk 0:00:09]} 63. Ke5 {[%clk 0:01:41]}  Qd6+ {[%clk 0:00:09]} 64. Kf5 {[%clk 0:01:41]}  Qd5+ {[%clk 0:00:09]} 65. Kg6 {[%clk 0:01:41]}  Qe5 {[%clk 0:00:09]} 66. Kf7 {[%clk 0:01:41]}  Bg1 {[%clk 0:00:08]} 67. Kg8 {[%clk 0:01:41]}  Qc7 {[%clk 0:00:08]} 68. Kf8 {[%clk 0:01:41]}  Qd7 {[%clk 0:00:08]} 69. Kg8 {[%clk 0:01:42]}  Qe7 {[%clk 0:00:08]} 70. Kh8 {[%clk 0:01:42]}  Bd4+ {[%clk 0:00:08]} 71. Kg8 {[%clk 0:01:41]}  Qg7# {[%clk 0:00:08]} 0-1


[Site "https://www.chess.com"]

[Event "Titled Tuesday Blitz January 03 Early 2023"]
[White "Mohammed, Zozek Salah Mohammed"]
[Black "Bashirli, Saadat"]
[WhiteFideId "4803361"]
[BlackFideId "13429990"]
[WhiteElo "2210"]
[BlackElo "1571"]
[Result "1-0"]
[Round "05"]
[TimeControl "180+2"]
[Date "2023.01.03"]
[WhiteClock "0:00:17"]
[BlackClock "0:00:02"]

1. d4 {[%clk 0:02:58]}  d5 {[%clk 0:02:56]} 2. c4 {[%clk 0:02:55]}  e6 {[%clk 0:02:55]} 3. Nf3 {[%clk 0:02:40]}  c6 {[%clk 0:02:53]} 4. g3 {[%clk 0:02:39]}  dxc4 {[%clk 0:02:46]} 5. Bg2 {[%clk 0:02:36]}  b5 {[%clk 0:02:45]} 6. O-O {[%clk 0:02:32]}  Nf6 {[%clk 0:02:42]} 7. Ne5 {[%clk 0:02:32]}  Bb7 {[%clk 0:02:41]} 8. a4 {[%clk 0:02:31]}  a6 {[%clk 0:02:35]} 9. Nc3 {[%clk 0:02:22]}  Qb6 {[%clk 0:02:31]} 10. axb5 {[%clk 0:02:11]}  axb5 {[%clk 0:02:29]} 11. Rxa8 {[%clk 0:02:08]}  Bxa8 {[%clk 0:02:30]} 12. e4 {[%clk 0:02:01]}  Be7 {[%clk 0:02:19]} 13. Be3 {[%clk 0:01:55]}  Qc7 {[%clk 0:02:13]} 14. d5 {[%clk 0:01:52]}  Qxe5 {[%clk 0:02:00]} 15. Bf4 {[%clk 0:01:51]}  Qh5 {[%clk 0:02:00]} 16. Bf3 {[%clk 0:01:50]}  Qg6 {[%clk 0:01:56]} 17. Bxb8 {[%clk 0:01:49]}  O-O {[%clk 0:01:30]} 18. d6 {[%clk 0:01:34]}  Rxb8 {[%clk 0:01:25]} 19. dxe7 {[%clk 0:01:33]}  Re8 {[%clk 0:01:25]} 20. Qd8 {[%clk 0:01:31]}  Qg5 {[%clk 0:01:04]} 21. Ra1 {[%clk 0:01:25]}  Bb7 {[%clk 0:00:57]} 22. Qc7 {[%clk 0:01:08]}  Bc8 {[%clk 0:00:41]} 23. e5 {[%clk 0:01:02]}  Nd5 {[%clk 0:00:39]} 24. Nxd5 {[%clk 0:00:52]}  exd5 {[%clk 0:00:28]} 25. Ra8 {[%clk 0:00:51]}  Qf5 {[%clk 0:00:28]} 26. Qd8 {[%clk 0:00:41]}  Qd7 {[%clk 0:00:18]} 27. Bg4 {[%clk 0:00:27]}  Qxd8 {[%clk 0:00:06]} 28. exd8=Q {[%clk 0:00:25]}  Rxd8 {[%clk 0:00:05]} 29. Rxc8 {[%clk 0:00:23]}  Rxc8 {[%clk 0:00:05]} 30. Bxc8 {[%clk 0:00:24]}  d4 {[%clk 0:00:02]} 31. Kf1 {[%clk 0:00:18]}  Kf8 {[%clk 0:00:02]} 32. Bd7 {[%clk 0:00:17]} 1-0


[Site "https://www.chess.com"]

[Event "Titled Tuesday Blitz January 03 Early 2023"]
[White "Mekhane, Adam"]
[Black "Thiel, Thomas"]
[WhiteFideId "36050601"]
[BlackFideId "4615964"]
[WhiteElo "2280"]
[BlackElo "2234"]
[Result "1-0"]
[Round "05"]
[TimeControl "180+2"]
[Date "2023.01.03"]
[WhiteClock "0:01:10"]
[BlackClock "0:00:45"]

1. b3 {[%clk 0:02:58]}  e5 {[%clk 0:02:56]} 2. Bb2 {[%clk 0:02:59]}  Nc6 {[%clk 0:02:54]} 3. e3 {[%clk 0:02:59]}  Nf6 {[%clk 0:02:47]} 4. Nf3 {[%clk 0:02:57]}  Bd6 {[%clk 0:02:47]} 5. d4 {[%clk 0:02:53]}  exd4 {[%clk 0:02:45]} 6. Nxd4 {[%clk 0:02:52]}  Nxd4 {[%clk 0:02:44]} 7. Qxd4 {[%clk 0:02:53]}  O-O {[%clk 0:02:42]} 8. Nc3 {[%clk 0:02:49]}  Re8 {[%clk 0:02:41]} 9. O-O-O {[%clk 0:02:49]}  Be5 {[%clk 0:02:39]} 10. Qd2 {[%clk 0:02:49]}  c6 {[%clk 0:02:39]} 11. g4 {[%clk 0:02:47]}  Nxg4 {[%clk 0:02:34]} 12. Rg1 {[%clk 0:02:47]}  d5 {[%clk 0:02:28]} 13. h3 {[%clk 0:02:46]}  Nf6 {[%clk 0:02:24]} 14. f4 {[%clk 0:02:44]}  Ne4 {[%clk 0:02:22]} 15. Nxe4 {[%clk 0:02:40]}  Bxb2+ {[%clk 0:02:21]} 16. Kxb2 {[%clk 0:02:40]}  Rxe4 {[%clk 0:02:21]} 17. Bd3 {[%clk 0:02:39]}  Qf6+ {[%clk 0:02:10]} 18. Kb1 {[%clk 0:02:37]}  Re8 {[%clk 0:02:08]} 19. Rg5 {[%clk 0:02:32]}  h6 {[%clk 0:02:01]} 20. Rg3 {[%clk 0:02:27]}  Bf5 {[%clk 0:01:54]} 21. Rdg1 {[%clk 0:01:48]}  g6 {[%clk 0:01:52]} 22. h4 {[%clk 0:01:43]}  Bxd3 {[%clk 0:01:49]} 23. Qxd3 {[%clk 0:01:44]}  Kf8 {[%clk 0:01:28]} 24. h5 {[%clk 0:01:39]}  gxh5 {[%clk 0:01:24]} 25. e4 {[%clk 0:01:31]}  h4 {[%clk 0:01:01]} 26. Rg8+ {[%clk 0:01:15]}  Ke7 {[%clk 0:01:00]} 27. Rxe8+ {[%clk 0:01:15]}  Rxe8 {[%clk 0:00:56]} 28. exd5 {[%clk 0:01:16]}  cxd5 {[%clk 0:00:55]} 29. Qxd5 {[%clk 0:01:15]}  h3 {[%clk 0:00:45]} 30. Qc5+ {[%clk 0:01:10]} 1-0


[Site "https://www.chess.com"]

[Event "Titled Tuesday Blitz January 03 Early 2023"]
[White "Demchenko, Anton"]
[Black "Hoffmann, Asa"]
[WhiteFideId "4160258"]
[BlackFideId "2001470"]
[WhiteElo "2623"]
[BlackElo "2185"]
[Result "1-0"]
[Round "05"]
[TimeControl "180+2"]
[Date "2023.01.03"]
[WhiteClock "0:02:00"]
[BlackClock "0:00:37"]

1. a3 {[%clk 0:03:00]}  d6 {[%clk 0:02:59]} 2. Nf3 {[%clk 0:02:53]}  e5 {[%clk 0:02:58]} 3. c4 {[%clk 0:02:53]}  Be6 {[%clk 0:02:56]} 4. d3 {[%clk 0:02:50]}  Be7 {[%clk 0:02:55]} 5. g3 {[%clk 0:02:47]}  Qd7 {[%clk 0:02:54]} 6. Nc3 {[%clk 0:02:43]}  c6 {[%clk 0:02:52]} 7. e4 {[%clk 0:02:37]}  h6 {[%clk 0:02:49]} 8. d4 {[%clk 0:02:37]}  Qc7 {[%clk 0:02:42]} 9. d5 {[%clk 0:02:32]}  Bg4 {[%clk 0:02:38]} 10. h3 {[%clk 0:02:31]}  Bh5 {[%clk 0:02:37]} 11. Bg2 {[%clk 0:02:27]}  Nf6 {[%clk 0:02:36]} 12. O-O {[%clk 0:02:26]}  Nbd7 {[%clk 0:02:32]} 13. Be3 {[%clk 0:02:25]}  c5 {[%clk 0:02:31]} 14. Qd3 {[%clk 0:02:18]}  a6 {[%clk 0:02:30]} 15. Nh4 {[%clk 0:02:16]}  g5 {[%clk 0:02:23]} 16. Nf5 {[%clk 0:02:16]}  Bg6 {[%clk 0:02:21]} 17. Nxe7 {[%clk 0:02:13]}  Kxe7 {[%clk 0:02:21]} 18. f4 {[%clk 0:02:14]}  gxf4 {[%clk 0:02:17]} 19. gxf4 {[%clk 0:02:15]}  Rag8 {[%clk 0:02:01]} 20. Kh2 {[%clk 0:02:14]}  h5 {[%clk 0:01:42]} 21. f5 {[%clk 0:02:14]}  Bh7 {[%clk 0:01:38]} 22. Rg1 {[%clk 0:02:12]}  Qb6 {[%clk 0:01:16]} 23. Qc2 {[%clk 0:02:08]}  Qa5 {[%clk 0:01:11]} 24. Bf3 {[%clk 0:02:05]}  Rxg1 {[%clk 0:01:05]} 25. Rxg1 {[%clk 0:02:04]}  Rg8 {[%clk 0:01:05]} 26. Bg5 {[%clk 0:02:04]}  Kf8 {[%clk 0:00:57]} 27. h4 {[%clk 0:02:05]}  Ng4+ {[%clk 0:00:51]} 28. Bxg4 {[%clk 0:02:05]}  hxg4 {[%clk 0:00:51]} 29. Rxg4 {[%clk 0:01:59]}  f6 {[%clk 0:00:47]} 30. Bh6+ {[%clk 0:01:59]}  Kf7 {[%clk 0:00:47]} 31. Rxg8 {[%clk 0:02:00]}  Bxg8 {[%clk 0:00:46]} 32. Qg2 {[%clk 0:02:01]}  Qd8 {[%clk 0:00:37]} 33. Qg7+ {[%clk 0:02:00]} 1-0


[Site "https://www.chess.com"]

[Event "Titled Tuesday Blitz January 03 Early 2023"]
[White "Santos Ruiz, Miguel"]
[Black "Qashashvili, Alexandre"]
[WhiteFideId "22291482"]
[BlackFideId "13600842"]
[WhiteElo "2590"]
[BlackElo "2505"]
[Result "1-0"]
[Round "05"]
[TimeControl "180+2"]
[Date "2023.01.03"]
[WhiteClock "0:00:13"]
[BlackClock "0:00:02"]

1. d4 {[%clk 0:03:00]}  c6 {[%clk 0:02:55]} 2. e4 {[%clk 0:03:00]}  d5 {[%clk 0:02:56]} 3. exd5 {[%clk 0:02:59]}  cxd5 {[%clk 0:02:57]} 4. c3 {[%clk 0:02:58]}  Nc6 {[%clk 0:02:56]} 5. Bd3 {[%clk 0:02:57]}  Nf6 {[%clk 0:02:52]} 6. Nf3 {[%clk 0:02:57]}  Bg4 {[%clk 0:02:51]} 7. h3 {[%clk 0:02:57]}  Bh5 {[%clk 0:02:50]} 8. Bf4 {[%clk 0:02:58]}  e6 {[%clk 0:02:48]} 9. Nbd2 {[%clk 0:02:57]}  Bd6 {[%clk 0:02:47]} 10. Bxd6 {[%clk 0:02:57]}  Qxd6 {[%clk 0:02:48]} 11. O-O {[%clk 0:02:58]}  O-O {[%clk 0:02:48]} 12. Re1 {[%clk 0:02:58]}  Rac8 {[%clk 0:02:47]} 13. Qb1 {[%clk 0:02:51]}  Bg6 {[%clk 0:02:44]} 14. Bxg6 {[%clk 0:02:50]}  hxg6 {[%clk 0:02:45]} 15. Qd3 {[%clk 0:02:49]}  a6 {[%clk 0:02:44]} 16. a4 {[%clk 0:02:48]}  Rfe8 {[%clk 0:02:44]} 17. Ne5 {[%clk 0:02:47]}  Nd7 {[%clk 0:02:43]} 18. Ndf3 {[%clk 0:02:41]}  Ncxe5 {[%clk 0:02:41]} 19. dxe5 {[%clk 0:02:38]}  Qc5 {[%clk 0:02:36]} 20. a5 {[%clk 0:02:35]}  Qc4 {[%clk 0:02:34]} 21. Qd1 {[%clk 0:02:27]}  Nc5 {[%clk 0:02:26]} 22. Nd4 {[%clk 0:02:17]}  Ne4 {[%clk 0:02:22]} 23. Ra4 {[%clk 0:02:09]}  Qc7 {[%clk 0:02:18]} 24. Qe2 {[%clk 0:01:57]}  Re7 {[%clk 0:02:01]} 25. h4 {[%clk 0:01:55]}  Nc5 {[%clk 0:01:53]} 26. Raa1 {[%clk 0:01:50]}  Ne4 {[%clk 0:01:50]} 27. h5 {[%clk 0:01:46]}  gxh5 {[%clk 0:01:48]} 28. Qxh5 {[%clk 0:01:46]}  g6 {[%clk 0:01:48]} 29. Qh4 {[%clk 0:01:29]}  Qd8 {[%clk 0:01:32]} 30. Re3 {[%clk 0:01:15]}  Rec7 {[%clk 0:01:29]} 31. Qh2 {[%clk 0:01:08]}  Qg5 {[%clk 0:01:13]} 32. Rh3 {[%clk 0:00:59]}  Kf8 {[%clk 0:01:12]} 33. Nf3 {[%clk 0:00:54]}  Qf5 {[%clk 0:00:57]} 34. Rf1 {[%clk 0:00:37]}  Ke7 {[%clk 0:00:53]} 35. Rh7 {[%clk 0:00:30]}  Rc4 {[%clk 0:00:23]} 36. Nd4 {[%clk 0:00:26]}  Qg5 {[%clk 0:00:19]} 37. f3 {[%clk 0:00:17]}  Ng3 {[%clk 0:00:16]} 38. f4 {[%clk 0:00:16]}  Nxf1 {[%clk 0:00:15]} 39. Rxf7+ {[%clk 0:00:15]}  Ke8 {[%clk 0:00:10]} 40. Qh8+ {[%clk 0:00:15]}  Kxf7 {[%clk 0:00:10]} 41. Qh7+ {[%clk 0:00:15]}  Ke8 {[%clk 0:00:10]} 42. fxg5 {[%clk 0:00:15]}  Ne3 {[%clk 0:00:09]} 43. Qg8+ {[%clk 0:00:14]}  Ke7 {[%clk 0:00:04]} 44. Qxe6+ {[%clk 0:00:13]}  Kd8 {[%clk 0:00:03]} 45. Qf6+ {[%clk 0:00:12]}  Kd7 {[%clk 0:00:02]} 46. Qf7+ {[%clk 0:00:12]}  Kd8 {[%clk 0:00:02]} 47. Ne6# {[%clk 0:00:13]} 1-0


[Site "https://www.chess.com"]